bitfinex/quotes_ETHUSD_20250331
["timestamp","ask_amount","ask_price","bid_price","bid_amount"]
[1743385458471,0.8024,1819.5,1819.3,5.49636]
[1743385458845,3.605,1819.6,1819.3,5.49636]
[1743385460473,3.605,1819.6,1819.4,5.49626]
[1743385461149,6.8524,1819.7,1819.5,5.49582]
[1743385461774,6.8524,1819.7,1819.3,5.49661]
[1743385462074,9.53848218,1819.7,1819.3,5.49661]
[1743385462246,5.49576,1819.6,1819.2,11.37592]
[1743385462443,15.03404218,1819.7,1819.2,11.3757]
[1743385462649,1.50340422,1819.6,1819.3,5.4965]
[1743385463366,6.8524,1819.7,1819.3,5.4965]
[1743385463880,12.34785,1819.7,1819.3,5.4965]
[1743385464050,0.8024,1819.5,1819.2,5.49692]
[1743385464877,6.8524,1819.5,1819.2,5.49692]
[1743385465080,6.8524,1819.5,1819.2,10.99362]
[1743385466380,6.8524,1819.5,1819.3,5.4966]
[1743385468756,6.05,1819.5,1819.4,5.49631]
[1743385470801,15.35938,1819.8,1819.4,5.49631]
[1743385471008,17.4498,1819.8,1819.4,5.49631]
[1743385472597,0.8142,1819.6,1819.2,5.49686]
[1743385472770,6.30993,1819.6,1819.2,10.99358]
[1743385472960,0.8142,1819.6,1819.3,5.49647]
[1743385473306,11.14042,1819.8,1819.4,5.49625]
[1743385473455,11.95462,1819.8,1819.6,5.4956]
[1743385473658,9.8642,1819.8,1819.5,5.49593]
[1743385474206,0.05,1819.9,1819.7,5.49541]
[1743385474971,0.05,1819.9,1819.8,5.4951]
[1743385475382,0.05,1819.9,1819.6,5.49567]
[1743385475679,0.05,1819.9,1819.7,5.4954]
[1743385477414,0.05,1819.9,1819.6,5.49557]
[1743385477715,0.05,1819.9,1819.5,11.36994]
[1743385477716,0.8142,1819.8,1819.5,11.36994]
[1743385478718,0.10324128,1819.7,1819.5,11.3698]
[1743385479017,0.10324128,1819.7,1819.5,5.4958]
[1743385479201,0.10324128,1819.7,1819.4,5.49628]
[1743385479515,6.15324128,1819.7,1819.4,5.49628]
[1743385480011,17.84121541,1819.7,1819.2,5.49683]
[1743385480207,12.34553541,1819.7,1819.2,5.49683]
[1743385480773,12.34553541,1819.7,1819.2,5.49669]
[1743385481318,6.84998541,1819.7,1819.3,5.4965]
[1743385481487,6.84998541,1819.7,1819.3,10.99294]
[1743385481687,6.84998541,1819.7,1819.3,5.49644]
[1743385481898,6.84998541,1819.7,1819.4,5.49629]
[1743385482282,6.84998541,1819.7,1819.5,5.49599]
[1743385482482,6.84998541,1819.7,1819.4,5.49614]
[1743385482996,6.84998541,1819.7,1819.3,5.49659]
[1743385483207,12.34544541,1819.7,1819.3,5.49659]
[1743385483378,1.23454454,1819.6,1819.3,5.49659]
[1743385483581,0.10586593,1819.5,1819.3,5.49659]
[1743385483775,12.24220413,1819.7,1819.3,5.49659]
[1743385484120,0.10586593,1819.6,1819.3,5.49659]
[1743385484417,12.24220413,1819.7,1819.3,5.49659]
[1743385484589,0.10586593,1819.5,1819.3,5.49659]
[1743385484791,11.54546,1819.7,1819.3,5.49659]
[1743385484997,0.10586593,1819.6,1819.3,5.49659]
[1743385485203,13.59954522,1819.7,1819.3,5.49659]
[1743385485379,0.10586593,1819.6,1819.3,5.49659]
[1743385485713,13.59954522,1819.7,1819.3,5.49659]
[1743385485919,0.10586593,1819.5,1819.4,5.49619]
[1743385486077,6.05,1819.7,1819.5,5.49593]
[1743385487122,6.05,1819.7,1819.5,5.49587]
[1743385487490,6.05,1819.7,1819.6,5.49571]
[1743385487774,5.54483,1819.9,1819.5,6.045577]
[1743385488018,5.54483,1819.9,1819.5,5.49599]
[1743385488187,3.05,1819.9,1819.4,11.36731]
[1743385488390,3.05,1819.9,1819.7,10.99044]
[1743385488577,3.05,1819.9,1819.7,5.49522]
[1743385488922,3.05,1819.9,1819.6,5.49562]
[1743385489217,3.05,1819.9,1819.7,5.49538]
[1743385489810,3.05,1819.9,1819.7,5.49539]
[1743385492596,4.03784,1819.9,1819.5,5.49601]
[1743385492903,3.05,1819.9,1819.5,10.99181]
[1743385493146,3.05,1819.9,1819.6,5.49571]
[1743385493290,3.05,1819.9,1819.5,5.4958]
[1743385493492,3.05,1819.9,1819.5,10.99161]
[1743385494273,8.54483,1819.9,1819.5,5.4958]
[1743385494424,10.631605,1819.9,1819.5,5.4958]
[1743385494840,0.7784,1819.8,1819.3,5.49636]
[1743385495167,0.7784,1819.8,1819.3,10.99285]
[1743385495168,5.49555,1819.7,1819.3,10.99285]
[1743385495321,0.7784,1819.8,1819.4,5.49617]
[1743385495933,6.27353,1819.8,1819.4,5.49617]
[1743385496133,8.02399222,1819.8,1819.4,5.49617]
[1743385496352,13.51935222,1819.8,1819.3,5.49636]
[1743385497255,6.05,1819.7,1819.3,5.49636]
[1743385497653,6.05,1819.7,1819.5,5.49581]
[1743385497853,6.05,1819.7,1819.6,5.49571]
[1743385498751,6.05,1819.7,1819.6,6.594862]
[1743385498954,0.05,1819.9,1819.8,5.4951]
[1743385500042,0.1553411,1819.9,1819.8,5.4951]
[1743385501368,6.28986,1819.8,1819.4,5.49615]
[1743385501536,3.0,1819.7,1819.3,5.49661]
[1743385501723,3.0,1819.7,1819.4,5.49602]
[1743385501919,0.10359294,1819.6,1819.4,5.49602]
[1743385502151,3.0,1819.7,1819.4,5.49602]
[1743385502359,0.10359294,1819.5,1819.4,5.49602]
[1743385502541,3.0,1819.7,1819.4,11.541712]
[1743385502747,0.10359294,1819.5,1819.4,11.541712]
[1743385503063,0.10359294,1819.5,1819.4,6.045622]
[1743385503242,3.0,1819.7,1819.4,10.99211]
[1743385503434,0.10359294,1819.5,1819.3,5.49661]
[1743385503641,0.05,1819.9,1819.8,5.4951]
[1743385504825,0.05,1819.9,1819.8,6.313]
[1743385505025,0.05,1819.9,1819.8,7.493839]
[1743385506566,0.05,1819.9,1819.8,5.4951]
[1743385506744,0.05,1819.9,1819.7,11.36018]
[1743385506941,0.05,1819.9,1819.8,5.4951]
[1743385507146,0.05,1819.9,1819.7,5.49518]
[1743385507454,0.05,1819.9,1819.8,5.4951]
[1743385507969,0.05,1819.9,1819.8,7.412028]
[1743385509657,0.05,1819.9,1819.8,13.276028]
[1743385511169,0.05,1819.9,1819.8,13.275028]
[1743385511369,0.05,1819.9,1819.8,11.3581]
[1743385511735,0.05,1819.9,1819.8,5.4951]
[1743385511940,0.05,1819.9,1819.7,43.08318]
[1743385513474,0.05,1819.9,1819.7,11.35818]
[1743385515175,0.8059,1819.8,1819.5,1.1240596]
[1743385515475,8.18149218,1819.7,1819.3,5.4964]
[1743385515677,2.68608218,1819.7,1819.3,10.9928]
[1743385515841,2.68608218,1819.7,1819.2,31.723]
[1743385515842,8.18222218,1819.5,1819.2,31.723]
[1743385516044,8.18214218,1819.5,1818.9,5.4977]
[1743385516270,8.18214218,1819.5,1819.2,5.49668]
[1743385516271,6.8559,1819.4,1819.2,5.49668]
[1743385516479,6.8559,1819.4,1819.1,5.49717]
[1743385516675,6.8559,1819.4,1819.2,5.49665]
[1743385516875,6.8559,1819.4,1819.1,5.49718]
[1743385517068,6.8559,1819.4,1819.2,5.49675]
[1743385517572,6.05,1819.4,1819.3,5.49661]
[1743385517770,9.05,1819.6,1819.3,5.49661]
[1743385517973,14.54593,1819.6,1819.1,5.862]
[1743385518151,8.98820218,1819.5,1819.1,5.862]
[1743385518351,14.48449218,1819.5,1819.1,5.862]
[1743385518595,16.8379414,1819.5,1819.1,5.862]
[1743385519060,16.8379414,1819.5,1819.0,5.49724]
[1743385519061,5.49631,1819.4,1819.0,5.49724]
[1743385519260,5.49631,1819.4,1818.9,11.35882]
[1743385519580,6.28964,1819.2,1818.7,5.49814]
[1743385519881,6.29014,1819.0,1818.5,5.49878]
[1743385520182,6.29014,1819.0,1818.3,1.3972]
[1743385520183,5.49843,1818.7,1818.3,5.4996]
[1743385520573,2.68608218,1818.5,1818.1,1.11456301]
[1743385520757,2.68608218,1818.5,1818.0,5.50042]
[1743385520957,6.05,1818.4,1818.3,5.49964]
[1743385521158,6.05,1818.4,1818.2,5.49975]
[1743385521555,6.05,1818.4,1818.1,6.050272]
[1743385522077,6.05,1818.4,1818.1,11.550272]
[1743385523186,6.05,1818.4,1818.1,6.050042]
[1743385523364,6.05,1818.4,1818.1,5.5]
[1743385523564,6.05,1818.4,1818.0,5.5005]
[1743385524168,11.54953,1818.4,1817.9,6.57694495]
[1743385524368,6.05,1818.4,1818.0,5.50029]
[1743385524572,6.05,1818.4,1818.2,5.49981]
[1743385524977,6.05,1818.4,1818.1,5.50024]
[1743385525581,6.05,1818.4,1818.3,5.49964]
[1743385526389,0.7926,1818.6,1818.4,5.49927]
[1743385526566,6.05,1818.7,1818.4,5.4991]
[1743385526760,6.05,1818.7,1818.5,5.49876]
[1743385526960,6.8426,1818.8,1818.5,5.49876]
[1743385528789,6.8426,1818.8,1818.4,5.49933]
[1743385528790,6.8426,1818.8,1818.3,5.49952]
[1743385528993,7.52686,1818.8,1818.4,5.49917]
[1743385529289,6.8426,1818.8,1818.5,10.99785]
[1743385529482,6.8426,1818.8,1818.3,5.49951]
[1743385529681,6.28066,1818.6,1818.1,5.49999]
[1743385529881,5.49952,1818.4,1817.9,11.00133]
[1743385530086,0.7817,1818.3,1818.0,5.50041]
[1743385530670,6.05,1818.4,1818.3,5.49964]
[1743385530992,9.05,1818.6,1818.5,5.49903]
[1743385531191,9.05,1818.6,1818.3,5.49959]
[1743385531421,9.05,1818.6,1818.2,6.30401]
[1743385531580,6.05,1818.6,1818.3,6.129841]
[1743385531778,6.05,1818.6,1818.3,5.49944]
[1743385532210,6.05,1818.6,1818.2,10.99953]
[1743385532420,6.05,1818.6,1818.3,5.49939]
[1743385532630,0.7817,1818.7,1818.6,5.49873]
[1743385532914,6.8317,1818.9,1818.5,5.49891]
[1743385533100,8.10515951,1818.9,1818.5,5.49891]
[1743385533801,8.10515951,1818.9,1818.5,5.49889]
[1743385534016,6.8317,1818.9,1818.7,5.49838]
[1743385534183,0.7817,1819.1,1818.9,5.49758]
[1743385534509,3.0,1819.2,1819.0,5.49752]
[1743385534710,6.8317,1819.3,1819.0,5.49752]
[1743385535411,6.8317,1819.3,1819.1,5.49718]
[1743385535715,6.8317,1819.3,1819.1,10.9941]
[1743385536112,6.8317,1819.3,1819.1,5.497]
[1743385536299,6.8317,1819.3,1819.1,10.9941]
[1743385536508,9.8317,1819.3,1819.2,5.49692]
[1743385536812,9.8317,1819.3,1819.0,5.49735]
[1743385537606,9.8317,1819.3,1819.0,10.99463]
[1743385537802,6.05,1819.3,1819.1,5.4972]
[1743385538009,6.05,1819.3,1819.2,5.49692]
[1743385538397,0.7817,1819.5,1819.3,5.49654]
[1743385538888,3.7817,1819.5,1819.2,5.49688]
[1743385539098,3.7817,1819.5,1819.3,5.49661]
[1743385539418,3.7817,1819.5,1819.2,5.49678]
[1743385539918,0.7817,1819.5,1819.3,5.49644]
[1743385540081,0.7817,1819.5,1819.4,5.49631]
[1743385540280,0.7817,1819.5,1819.3,5.49644]
[1743385540526,6.05,1819.6,1819.4,5.49631]
[1743385540734,6.05,1819.6,1819.5,5.49601]
[1743385541036,6.05,1819.6,1819.4,5.49631]
[1743385541237,6.05,1819.6,1819.3,3.0]
[1743385541238,0.7817,1819.5,1819.3,3.0]
[1743385541585,6.27784,1819.5,1819.1,19.99696]
[1743385541805,8.060211,1819.5,1819.1,10.99397]
[1743385542089,2.564071,1819.5,1819.2,5.49675]
[1743385543304,2.564071,1819.5,1819.3,5.49638]
[1743385543305,0.7817,1819.5,1819.3,5.49638]
[1743385543711,0.7817,1819.5,1819.2,5.49691]
[1743385543927,0.7817,1819.5,1819.3,5.49653]
[1743385544111,0.7817,1819.5,1819.0,3.0]
[1743385544322,0.7817,1819.5,1819.0,0.67771]
[1743385544532,0.7817,1819.5,1819.1,5.49701]
[1743385544724,0.7817,1819.5,1819.2,5.49673]
[1743385545393,0.7817,1819.5,1819.3,5.49644]
[1743385546440,0.7817,1819.5,1819.2,5.49673]
[1743385546627,0.7817,1819.5,1819.2,10.99352]
[1743385547124,0.7817,1819.5,1819.3,5.49653]
[1743385547931,0.7817,1819.5,1819.2,5.49673]
[1743385548403,7.510617,1819.5,1819.1,5.4972]
[1743385549410,13.006857,1819.5,1819.1,5.4972]
[1743385549723,10.19669918,1819.5,1819.1,5.4972]
[1743385549893,21.74292918,1819.5,1819.1,5.4972]
[1743385550314,5.49634,1819.4,1819.0,5.49752]
[1743385550866,0.8052,1818.8,1818.6,31.743]
[1743385551012,12.35333,1818.8,1818.4,10.99866]
[1743385551355,6.8552,1818.8,1818.5,5.49898]
[1743385551917,5.49846,1818.7,1818.3,10.99926]
[1743385552111,5.49846,1818.7,1818.1,6.27715]
[1743385552112,0.8052,1818.6,1818.1,6.27715]
[1743385552314,3.8052,1818.6,1818.0,20.354]
[1743385552943,0.8052,1818.6,1818.1,0.55]
[1743385553112,6.05,1818.7,1818.3,5.49964]
[1743385553319,6.05,1818.7,1818.5,10.9979]
[1743385553614,6.40356,1818.7,1818.3,5.49964]
[1743385553826,0.8052,1818.6,1818.3,5.49964]
[1743385554044,0.8052,1818.6,1818.1,5.50012]
[1743385554045,0.8052,1818.6,1818.2,5.49989]
[1743385554244,0.8052,1818.6,1818.2,10.99964]
[1743385554441,6.8552,1818.6,1818.2,5.49975]
[1743385554641,5.49909,1818.5,1818.1,5.50018]
[1743385554846,6.05,1818.5,1818.2,5.49975]
[1743385555046,11.54918,1818.5,1818.0,20.00033]
[1743385555247,11.54918,1818.5,1818.1,5.50013]
[1743385555449,11.54918,1818.5,1818.1,5.50023]
[1743385556024,12.86222,1818.5,1818.1,5.50023]
[1743385556224,6.30457,1818.4,1818.0,20.00033]
[1743385557254,5.49978,1818.3,1818.0,14.5]
[1743385557453,5.49978,1818.3,1817.9,37.2358]
[1743385558174,8.94171218,1818.2,1817.9,31.735]
[1743385558352,6.25617,1818.0,1817.6,5.50156]
[1743385558526,12.30617,1818.0,1817.6,5.50156]
[1743385559247,12.30617,1818.0,1817.5,6.58923134]
[1743385559248,0.7556,1817.8,1817.5,5.50194]
[1743385559423,0.7556,1817.8,1817.2,43.09793]
[1743385559623,6.8056,1817.8,1817.6,5.50159]
[1743385559828,7.48616,1817.8,1817.5,5.50199]
[1743385560065,6.8056,1817.8,1817.6,5.50168]
[1743385560222,6.8056,1817.8,1817.5,5.50199]
[1743385560865,6.8056,1817.8,1817.4,5.50235]
[1743385561024,12.30698,1817.8,1817.3,5.50266]
[1743385561360,5.50199,1817.6,1817.2,37.24396]
[1743385561558,5.50199,1817.6,1817.2,5.50284]
[1743385561559,0.7556,1817.4,1817.2,5.50284]
[1743385561940,3.0,1817.5,1817.1,0.1]
[1743385562140,3.0,1817.5,1817.4,5.50236]
[1743385562545,6.8056,1817.6,1817.5,5.50206]
[1743385562861,6.05,1817.9,1817.8,5.50115]
[1743385563166,0.7556,1818.0,1817.9,5.50085]
[1743385563350,0.7556,1818.0,1817.9,14.5]
[1743385564559,0.7556,1818.0,1817.8,5.50103]
[1743385565363,0.7556,1818.0,1817.9,5.50085]
[1743385565565,0.7556,1818.0,1817.8,5.50103]
[1743385566497,0.7556,1818.0,1817.9,5.50085]
[1743385566760,6.05,1818.2,1818.1,5.50024]
[1743385566940,6.8056,1818.4,1818.3,5.49964]
[1743385567139,9.05,1818.4,1818.3,5.49964]
[1743385567332,0.7556,1818.6,1818.5,5.49903]
[1743385567730,3.7556,1818.6,1818.3,6.599576]
[1743385567965,3.7556,1818.6,1818.2,5.49972]
[1743385568150,9.25453,1818.6,1818.2,5.49972]
[1743385569067,5.49906,1818.5,1818.1,5.50024]
[1743385569269,8.94102218,1818.4,1818.0,5.853]
[1743385569431,5.49967,1818.3,1817.9,5.5007]
[1743385569632,6.05,1818.3,1817.8,11.35403]
[1743385569838,6.05,1818.3,1818.0,5.50037]
[1743385570034,6.05,1818.3,1817.9,1.100184]
[1743385570035,6.05,1818.3,1818.1,5.50009]
[1743385570236,11.54982,1818.3,1817.8,5.50085]
[1743385570451,6.05,1818.3,1817.7,5.853]
[1743385570653,6.05,1818.3,1818.1,5.49998]
[1743385570857,6.05,1818.3,1818.2,5.49994]
[1743385571058,6.05,1818.3,1818.1,5.49998]
[1743385571255,6.05,1818.3,1818.2,5.49994]
[1743385571769,6.05,1818.3,1818.1,5.49998]
[1743385572072,6.05,1818.3,1818.0,5.5003]
[1743385572246,6.05,1818.3,1818.1,5.50023]
[1743385572443,6.05,1818.3,1818.2,5.49994]
[1743385573464,6.8056,1818.4,1818.2,5.49994]
[1743385574172,6.05,1818.4,1818.3,5.49964]
[1743385574335,3.7929,1818.6,1818.3,10.99904]
[1743385574336,9.8429,1818.6,1818.3,10.99904]
[1743385574538,9.8429,1818.6,1818.4,5.49931]
[1743385574939,9.8429,1818.6,1818.4,10.99841]
[1743385575171,0.7929,1818.6,1818.5,5.49903]
[1743385575679,0.7929,1818.6,1818.3,5.4996]
[1743385575845,0.7929,1818.6,1818.4,5.49921]
[1743385576565,0.7929,1818.6,1818.3,5.49951]
[1743385577762,0.7929,1818.6,1818.3,1.099943]
[1743385577942,6.05,1818.8,1818.7,5.49843]
[1743385578151,6.8429,1819.0,1818.9,5.49782]
[1743385578343,6.8429,1819.0,1818.7,5.49827]
[1743385578549,0.7929,1818.8,1818.5,5.49889]
[1743385578778,6.29122,1818.8,1818.4,5.49931]
[1743385579072,11.78961,1818.8,1818.4,5.49931]
[1743385579642,6.29122,1818.8,1818.4,5.49931]
[1743385580067,11.78958,1818.8,1818.4,5.49931]
[1743385580283,1.178958,1818.7,1818.4,5.49931]
[1743385580860,1.178958,1818.7,1818.5,5.49896]
[1743385581077,0.7929,1818.8,1818.5,5.49896]
[1743385582178,6.05,1818.7,1818.6,5.49873]
[1743385583549,6.8429,1819.2,1818.9,5.49782]
[1743385584096,6.8429,1819.2,1819.0,5.4975]
[1743385584388,6.8429,1819.2,1818.9,5.49782]
[1743385585494,11.46604767,1819.2,1818.8,5.49801]
[1743385585695,16.96307767,1819.2,1818.8,5.49801]
[1743385585990,11.06293518,1819.2,1818.9,5.49768]
[1743385586190,11.06293518,1819.2,1819.0,5.49736]
[1743385586191,8.376853,1819.2,1819.0,5.49736]
[1743385586553,6.05,1819.2,1819.1,5.49722]
[1743385587095,3.0,1819.4,1819.1,0.7517]
[1743385587451,3.0,1819.4,1819.2,5.49692]
[1743385587666,3.0,1819.4,1819.0,5.49734]
[1743385587667,0.7959,1819.3,1819.0,5.49734]
[1743385587892,0.7959,1819.3,1819.0,10.99466]
[1743385588217,6.29252,1819.3,1818.9,11.34481]
[1743385588519,0.7959,1819.3,1818.9,5.49781]
[1743385588673,6.29256,1819.3,1818.9,5.49781]
[1743385588877,0.7959,1819.3,1818.9,5.49761]
[1743385589072,0.7959,1819.3,1818.9,10.9953]
[1743385589316,0.7959,1819.3,1818.9,5.49761]
[1743385589497,0.7959,1819.3,1818.9,10.99523]
[1743385589706,6.05,1819.6,1819.5,5.49601]
[1743385589707,0.7959,1819.6,1819.5,5.49601]
[1743385589894,6.8459,1819.8,1819.7,5.49541]
[1743385590082,6.05,1819.8,1819.7,5.49541]
[1743385590790,6.05,1819.8,1819.6,5.49561]
[1743385590987,6.05,1819.8,1819.7,5.49541]
[1743385592481,6.05,1819.8,1819.6,5.49561]
[1743385593525,6.05,1819.8,1819.7,5.49541]
[1743385593930,6.1,1819.9,1819.7,5.49541]
[1743385594427,0.05,1819.9,1819.8,5.4951]
[1743385595401,0.05,1819.9,1819.7,5.49541]
[1743385595617,0.05,1819.9,1819.8,5.4951]
[1743385596147,0.05,1819.9,1819.8,6.8058]
[1743385596302,6.05,1820.4,1820.3,6.25429]
[1743385596641,0.8453,1820.6,1820.5,5.49299]
[1743385599242,0.8453,1820.6,1820.5,6.85489]
[1743385599401,0.8453,1820.6,1820.5,38.58089]
[1743385600343,0.05,1820.9,1820.8,6.30399]
[1743385600502,0.05,1820.9,1820.8,12.14499]
[1743385603044,0.05,1820.9,1820.8,6.30399]
[1743385603206,0.05,1820.9,1820.8,12.14299]
[1743385605951,0.05,1820.9,1820.8,12.69299]
[1743385606121,0.05,1820.9,1820.8,14.511518]
[1743385606319,3.0,1821.5,1821.4,5.49028]
[1743385606632,6.8559,1821.7,1821.6,5.48967]
[1743385606812,9.8559,1821.7,1821.5,5.48983]
[1743385607342,6.05,1821.7,1821.6,5.48967]
[1743385607918,6.05,1821.7,1821.5,11.32583]
[1743385609008,0.10425804,1821.6,1821.5,11.32583]
[1743385611624,6.05,1821.8,1821.5,11.32583]
[1743385611823,0.11556424,1821.6,1821.5,16.81561]
[1743385612023,0.8559,1821.9,1821.6,5.48948]
[1743385612347,0.8559,1821.9,1821.6,10.97897]
[1743385612710,0.8559,1821.9,1821.7,5.48933]
[1743385613748,0.8559,1821.9,1821.6,5.48948]
[1743385613911,0.8559,1821.9,1821.6,6.8009976]
[1743385614419,0.8059,1821.9,1821.6,6.8009976]
[1743385614610,0.8059,1821.9,1821.6,5.833]
[1743385614814,6.29539,1821.7,1821.3,5.49045]
[1743385615151,6.29539,1821.7,1821.2,10.98137]
[1743385615307,6.05,1821.6,1821.2,10.98137]
[1743385615513,6.05,1821.6,1821.2,12.662807]
[1743385615713,6.05,1821.6,1821.3,5.49041]
[1743385615935,11.53969,1821.6,1821.2,7.172097]
[1743385616308,11.53969,1821.6,1821.2,13.004097]
[1743385616509,17.02965,1821.6,1821.2,11.32266]
[1743385616950,5.49004,1821.5,1821.1,5.49118]
[1743385617136,6.29594,1821.5,1821.1,11.32318]
[1743385617449,6.29594,1821.5,1821.1,5.49118]
[1743385618347,0.8165,1821.2,1820.8,5.832]
[1743385618513,0.8165,1821.2,1820.9,5.49166]
[1743385618855,0.8165,1821.2,1820.9,5.49172]
[1743385620231,0.11521493,1821.1,1820.9,5.49177]
[1743385620432,0.11521493,1821.1,1820.8,11.90628]
[1743385620817,6.16521493,1821.1,1820.7,5.49238]
[1743385621143,6.16521493,1821.1,1820.8,5.49196]
[1743385621347,6.16521493,1821.1,1821.0,5.49148]
[1743385621717,6.16521493,1821.1,1821.0,11.32248]
[1743385621918,3.0,1821.5,1821.4,5.49028]
[1743385622119,3.0,1821.5,1821.1,5.49111]
[1743385622359,0.783,1821.4,1821.2,5.831]
[1743385622522,0.783,1821.4,1821.1,11.947321]
[1743385622916,0.783,1821.4,1821.1,6.116321]
[1743385623135,0.783,1821.4,1821.1,11.947321]
[1743385623564,0.783,1821.4,1821.1,6.116321]
[1743385623766,0.783,1821.4,1821.1,5.831]
[1743385623925,11.76398,1821.4,1820.9,5.49178]
[1743385624123,6.27374,1821.3,1820.8,5.49209]
[1743385624446,0.783,1821.1,1820.7,5.49226]
[1743385624615,5.49149,1821.0,1820.7,5.83]
[1743385624819,0.783,1820.8,1820.5,43.04899]
[1743385625017,0.783,1820.8,1820.5,36.106999]
[1743385625483,5.49249,1820.7,1820.5,31.726]
[1743385625683,6.05,1820.7,1820.3,12.41841373]
[1743385625898,3.0,1820.6,1820.3,12.41841373]
[1743385626187,3.0,1820.6,1820.3,6.58841373]
[1743385626843,3.0,1820.6,1820.2,5.49385]
[1743385627048,3.0,1820.6,1820.1,0.05]
[1743385627049,12.32615,1820.5,1820.1,0.05]
[1743385627244,0.783,1820.3,1820.1,0.05]
[1743385627478,12.3269,1820.2,1820.1,0.05]
[1743385627680,18.38636294,1820.2,1820.1,0.05]
[1743385627855,19.47473242,1820.2,1820.1,0.05]
[1743385628053,21.97158066,1820.2,1820.1,0.05]
[1743385628279,18.91211772,1820.2,1820.1,0.05]
[1743385628981,21.29997644,1820.2,1820.1,0.05]
[1743385630557,0.783,1820.0,1819.2,46.198]
[1743385630757,0.783,1819.6,1819.2,46.198]
[1743385630963,5.49637,1819.4,1819.2,46.198]
[1743385631196,11.5463,1819.5,1819.2,31.698]
[1743385631692,5.49637,1819.4,1819.2,31.698]
[1743385632448,11.54626,1819.5,1819.2,31.698]
[1743385632863,6.05,1819.5,1819.1,0.05]
[1743385633154,6.30312,1819.2,1819.1,0.05]
[1743385633354,12.35312,1819.2,1819.1,0.05]
[1743385633554,15.35312,1819.2,1819.1,0.05]
[1743385633753,18.01314929,1819.2,1819.1,0.05]
[1743385633949,18.81934929,1819.2,1819.1,0.05]
[1743385634292,21.25094822,1819.2,1819.1,0.05]
[1743385634490,22.36914605,1819.2,1819.1,0.05]
[1743385634895,19.30968311,1819.2,1819.1,0.05]
[1743385635046,22.36914605,1819.2,1819.1,0.05]
[1743385635478,28.75114605,1819.2,1819.1,0.05]
[1743385636046,5.49964,1818.3,1818.1,0.05]
[1743385636692,11.54938,1818.4,1818.1,0.05]
[1743385636874,7.3024623,1818.4,1818.1,0.05]
[1743385637081,5.49994,1818.2,1818.1,0.05]
[1743385637447,6.30614,1818.2,1818.1,0.05]
[1743385637759,12.35614,1818.2,1818.1,0.05]
[1743385638176,6.8562,1818.2,1818.1,0.05]
[1743385638385,6.46602127,1818.2,1818.1,0.05]
[1743385638883,7.07102127,1818.2,1818.1,0.05]
[1743385639052,12.57096127,1818.2,1818.1,0.05]
[1743385639457,7.07102127,1818.2,1818.1,0.05]
[1743385639654,6.46602127,1818.2,1818.1,0.05]
[1743385640988,6.05,1818.2,1818.1,5.55024]
[1743385641165,6.05,1818.2,1818.1,0.05]
[1743385641363,5.49906,1818.5,1818.1,0.05]
[1743385641364,6.05,1818.5,1818.1,0.05]
[1743385641564,6.05,1818.5,1818.1,5.55022]
[1743385641764,6.05,1818.5,1818.1,7.319579]
[1743385641983,6.05,1818.5,1818.2,5.4999]
[1743385642377,6.05,1818.5,1818.2,5.49988]
[1743385642588,6.05,1818.7,1818.3,5.49958]
[1743385642760,6.05,1818.8,1818.4,6.3106]
[1743385643094,3.0,1818.7,1818.5,5.49881]
[1743385643302,6.05,1818.8,1818.4,6.94158]
[1743385643506,11.54831,1818.8,1818.4,1.44236]
[1743385643668,6.05,1818.8,1818.5,14.5]
[1743385643997,6.46225918,1818.8,1818.5,14.5]
[1743385644169,5.49845,1818.7,1818.2,5.49994]
[1743385644495,5.49845,1818.7,1818.3,5.49963]
[1743385644682,19.5046351,1818.8,1818.4,14.5]
[1743385645082,14.0063151,1818.8,1818.4,14.5]
[1743385645396,11.96047918,1818.8,1818.4,14.5]
[1743385645582,6.05,1818.8,1818.6,5.49868]
[1743385645784,6.05,1819.0,1818.6,5.4986]
[1743385646093,6.05,1819.0,1818.7,5.49818]
[1743385646397,5.49794,1818.9,1818.5,14.5]
[1743385646601,6.30448,1818.8,1818.5,14.5]
[1743385646896,11.80288,1818.8,1818.4,5.833]
[1743385647095,6.30448,1818.8,1818.4,5.833]
[1743385647299,6.30448,1818.8,1818.4,20.333]
[1743385647791,1.986431,1818.8,1818.4,5.4992]
[1743385647996,6.30448,1818.8,1818.4,5.4992]
[1743385648177,0.8062,1818.8,1818.4,5.4992]
[1743385648375,5.4988,1818.6,1818.2,20.333]
[1743385648582,11.54921,1818.5,1818.1,0.05]
[1743385649403,11.96563784,1818.5,1818.1,0.05]
[1743385649603,14.01207562,1818.5,1818.1,0.05]
[1743385650513,14.01207562,1818.5,1818.4,5.49934]
[1743385650514,6.05,1818.5,1818.4,5.49934]
[1743385651117,6.05,1818.5,1818.4,11.33234]
[1743385652506,14.54782,1818.9,1818.4,16.83147]
[1743385653005,5.49826,1818.8,1818.3,0.7502]
[1743385653212,5.49868,1818.7,1818.2,5.49994]
[1743385653410,5.49882,1818.6,1818.2,11.33194]
[1743385653609,6.048506,1818.7,1818.3,5.49964]